[Event "Kvibergspelen September 2019"]
[Site "Prioritet Serneke Arena, Krutvagen 2, Gothenburg, Sweden"]
[Date "2019.09.29"]
[Round "8.12"]
[White "Rasti, Arvin"]
[Black "Cramling, Pia"]
[Result "0-1"]
[TimeControl "15 minutes + 5 seconds per move from move one (Round 1 - 4) / 90 minutes + 30 seconds per move from move one (Round 5 - 8)"]
[BlackTitle "GM"]
[WhiteFideId "1741160"]
[BlackFideId "1700030"]
[WhiteElo "2182"]
[BlackElo "2487"]

1. Nf3 {[%clk 01:30:53]} {[%emt 00:00:06]} d5 {[%clk 01:29:27]} {[%emt
00:01:33]} 2. e3 {[%clk 01:31:00]} {[%emt 00:00:23]} Nf6 {[%clk 01:28:32]}
{[%emt 00:01:25]} 3. c4 {[%clk 01:31:05]} {[%emt 00:00:26]} e6 {[%clk
01:28:49]} {[%emt 00:00:13]} 4. Nc3 {[%clk 01:31:22]} {[%emt 00:00:13]} dxc4
{[%clk 01:25:01]} {[%emt 00:04:17]} 5. Bxc4 {[%clk 01:31:40]} {[%emt 00:00:12]}
a6 {[%clk 01:25:23]} {[%emt 00:00:08]} 6. d4 {[%clk 01:30:23]} {[%emt
00:01:47]} c5 {[%clk 01:24:46]} {[%emt 00:01:08]} 7. O-O {[%clk 01:28:47]}
{[%emt 00:02:06]} b5 {[%clk 01:24:31]} {[%emt 00:00:44]} 8. Bb3 {[%clk
01:25:33]} {[%emt 00:03:44]} Bb7 {[%clk 01:24:26]} {[%emt 00:00:35]} 9. Qe2
{[%clk 01:24:19]} {[%emt 00:01:44]} Nbd7 {[%clk 01:21:38]} {[%emt 00:03:18]} 10.
Rd1 {[%clk 01:21:37]} {[%emt 00:03:12]} Qb6 {[%clk 01:06:41]} {[%emt 00:15:26]}
11. a3 {[%clk 01:09:14]} {[%emt 00:12:53]} Be7 {[%clk 00:54:47]} {[%emt
00:12:24]} 12. dxc5 {[%clk 01:07:15]} {[%emt 00:02:30]} Nxc5 {[%clk 00:53:36]}
{[%emt 00:01:41]} 13. Bc2 {[%clk 01:07:24]} {[%emt 00:00:21]} O-O {[%clk
00:48:51]} {[%emt 00:05:15]} 14. e4 {[%clk 01:00:57]} {[%emt 00:06:57]} Rad8
{[%clk 00:46:06]} {[%emt 00:03:15]} 15. Bg5 {[%clk 00:56:35]} {[%emt 00:04:51]}
Qc7 {[%clk 00:45:32]} {[%emt 00:01:04]} 16. Rac1 {[%clk 00:34:40]} {[%emt
00:22:25]} Rxd1+ {[%clk 00:44:46]} {[%emt 00:01:16]} 17. Rxd1 {[%clk 00:34:19]}
{[%emt 00:00:51]} Rd8 {[%clk 00:43:46]} {[%emt 00:01:29]} 18. Rxd8+ {[%clk
00:30:35]} {[%emt 00:04:15]} Qxd8 {[%clk 00:44:09]} {[%emt 00:00:07]} 19. Qd2
{[%clk 00:30:23]} {[%emt 00:00:42]} h6 {[%clk 00:37:51]} {[%emt 00:06:48]} 20.
Qxd8+ {[%clk 00:24:31]} {[%emt 00:06:23]} Bxd8 {[%clk 00:38:17]} {[%emt
00:00:02]} 21. b4 {[%clk 00:22:09]} {[%emt 00:02:53]} hxg5 {[%clk 00:36:58]}
{[%emt 00:01:48]} 22. bxc5 {[%clk 00:22:23]} {[%emt 00:00:17]} Nd7 {[%clk
00:36:03]} {[%emt 00:01:24]} 23. c6 {[%clk 00:07:53]} {[%emt 00:15:00]} Bxc6
{[%clk 00:36:20]} {[%emt 00:00:12]} 24. Nd4 {[%clk 00:08:18]} {[%emt 00:00:06]}
Bb7 {[%clk 00:34:51]} {[%emt 00:01:58]} 25. Nb3 {[%clk 00:07:51]} {[%emt
00:00:58]} Bb6 {[%clk 00:30:31]} {[%emt 00:04:50]} 26. a4 {[%clk 00:06:18]}
{[%emt 00:02:03]} b4 {[%clk 00:30:30]} {[%emt 00:00:31]} 27. Na2 {[%clk
00:05:22]} {[%emt 00:01:26]} a5 {[%clk 00:30:25]} {[%emt 00:00:34]} 28. Nac1
{[%clk 00:04:43]} {[%emt 00:01:09]} Ne5 {[%clk 00:21:14]} {[%emt 00:09:41]} 29.
h3 {[%clk 00:03:15]} {[%emt 00:01:59]} Ba6 {[%clk 00:20:09]} {[%emt 00:01:35]}
30. Bd1 {[%clk 00:02:02]} {[%emt 00:01:44]} Bb7 {[%clk 00:19:39]} {[%emt
00:00:59]} 31. Nd2 {[%clk 00:01:37]} {[%emt 00:00:56]} Bc6 {[%clk 00:19:15]}
{[%emt 00:00:52]} 32. Kf1 {[%clk 00:01:37]} {[%emt 00:00:30]} Kf8 {[%clk
00:19:10]} {[%emt 00:00:34]} 33. g3 {[%clk 00:01:46]} {[%emt 00:00:23]} Bb7
{[%clk 00:19:09]} {[%emt 00:00:30]} 34. Be2 {[%clk 00:01:49]} {[%emt 00:00:27]}
Bc6 {[%clk 00:19:26]} {[%emt 00:00:12]} 35. Bd1 {[%clk 00:02:18]} {[%emt
00:00:02]} Ke7 {[%clk 00:19:23]} {[%emt 00:00:32]} 36. Bc2 {[%clk 00:01:52]}
{[%emt 00:00:57]} Bb7 {[%clk 00:16:43]} {[%emt 00:03:09]} 37. f4 {[%clk
00:01:13]} {[%emt 00:01:10]} gxf4 {[%clk 00:16:17]} {[%emt 00:00:56]} 38. gxf4
{[%clk 00:01:42]} {[%emt 00:00:01]} Ng6 {[%clk 00:16:20]} {[%emt 00:00:26]} 39.
f5 {[%clk 00:01:23]} {[%emt 00:00:51]} Nf4 {[%clk 00:15:05]} {[%emt 00:01:43]}
40. h4 {[%clk 00:01:26]} {[%emt 00:00:28]} Ba6+ {[%clk 00:15:23]} {[%emt
00:00:12]} 41. Ke1 {[%clk 00:01:23]} {[%emt 00:00:34]} Ng2+ {[%clk 00:15:43]}
{[%emt 00:00:08]} 0-1

[Event "Kvibergspelen September 2019"]
[Site "Prioritet Serneke Arena, Krutvagen 2, Gothenburg, Sweden"]
[Date "2019.09.29"]
[Round "8.13"]
[White "Kumar, Rahul"]
[Black "Ziegler, Ari"]
[Result "0-1"]
[TimeControl "15 minutes + 5 seconds per move from move one (Round 1 - 4) / 90 minutes + 30 seconds per move from move one (Round 5 - 8)"]
[BlackTitle "IM"]
[WhiteFideId "5010969"]
[BlackFideId "1700987"]
[WhiteElo "2158"]
[BlackElo "2299"]

1. b3 {[%clk 01:30:48]} {[%emt 00:00:11]} e5 {[%clk 01:29:42]} {[%emt
00:01:18]} 2. Bb2 {[%clk 01:30:39]} {[%emt 00:00:39]} d6 {[%clk 01:30:05]}
{[%emt 00:00:08]} 3. g3 {[%clk 01:28:33]} {[%emt 00:02:35]} f5 {[%clk
01:29:05]} {[%emt 00:01:30]} 4. Bg2 {[%clk 01:28:52]} {[%emt 00:00:11]} Nf6
{[%clk 01:29:31]} {[%emt 00:00:04]} 5. c4 {[%clk 01:29:03]} {[%emt 00:00:19]}
Be7 {[%clk 01:29:54]} {[%emt 00:00:07]} 6. Nc3 {[%clk 01:29:27]} {[%emt
00:00:07]} O-O {[%clk 01:30:12]} {[%emt 00:00:12]} 7. e3 {[%clk 01:29:48]}
{[%emt 00:00:09]} Nc6 {[%clk 01:28:28]} {[%emt 00:02:13]} 8. Nge2 {[%clk
01:29:53]} {[%emt 00:00:25]} Qe8 {[%clk 01:27:07]} {[%emt 00:01:51]} 9. Nd5
{[%clk 01:25:51]} {[%emt 00:04:33]} Nxd5 {[%clk 01:25:07]} {[%emt 00:02:31]} 10.
cxd5 {[%clk 01:26:07]} {[%emt 00:00:13]} Nb4 {[%clk 01:24:58]} {[%emt
00:00:37]} 11. O-O {[%clk 01:19:19]} {[%emt 00:07:19]} Bd7 {[%clk 01:21:13]}
{[%emt 00:04:16]} 12. a4 {[%clk 01:10:26]} {[%emt 00:09:23]} Qf7 {[%clk
01:19:22]} {[%emt 00:02:21]} 13. d3 {[%clk 00:52:00]} {[%emt 00:18:56]} Nxd5
{[%clk 01:18:36]} {[%emt 00:01:15]} 14. Qd2 {[%clk 00:52:21]} {[%emt 00:00:09]}
c6 {[%clk 01:17:48]} {[%emt 00:01:19]} 15. b4 {[%clk 00:45:24]} {[%emt
00:07:27]} Be6 {[%clk 01:17:42]} {[%emt 00:00:35]} 16. b5 {[%clk 00:44:32]}
{[%emt 00:01:23]} c5 {[%clk 01:16:47]} {[%emt 00:01:24]} 17. f4 {[%clk
00:35:59]} {[%emt 00:09:03]} exf4 {[%clk 01:15:32]} {[%emt 00:01:45]} 18. gxf4
{[%clk 00:36:22]} {[%emt 00:00:07]} Rad8 {[%clk 01:13:54]} {[%emt 00:02:08]} 19.
e4 {[%clk 00:34:06]} {[%emt 00:02:47]} fxe4 {[%clk 01:12:45]} {[%emt 00:01:39]}
20. dxe4 {[%clk 00:34:03]} {[%emt 00:00:33]} Nb6 {[%clk 01:11:13]} {[%emt
00:02:02]} 21. f5 {[%clk 00:27:07]} {[%emt 00:07:25]} Bb3 {[%clk 01:10:21]}
{[%emt 00:01:22]} 22. Qd3 {[%clk 00:23:46]} {[%emt 00:03:52]} Bc4 {[%clk
01:06:18]} {[%emt 00:04:32]} 23. Qc2 {[%clk 00:22:47]} {[%emt 00:01:30]} Bxe2
{[%clk 01:03:00]} {[%emt 00:03:48]} 24. Qxe2 {[%clk 00:22:58]} {[%emt
00:00:17]} Nc4 {[%clk 01:02:57]} {[%emt 00:00:35]} 25. Rac1 {[%clk 00:21:13]}
{[%emt 00:02:14]} Nxb2 {[%clk 01:02:58]} {[%emt 00:00:29]} 26. Qxb2 {[%clk
00:21:34]} {[%emt 00:00:10]} Bf6 {[%clk 01:03:12]} {[%emt 00:00:16]} 27. Qe2
{[%clk 00:21:06]} {[%emt 00:00:56]} Be5 {[%clk 01:00:08]} {[%emt 00:03:35]} 28.
Qc4 {[%clk 00:20:58]} {[%emt 00:00:39]} Qxc4 {[%clk 01:00:27]} {[%emt
00:00:11]} 29. Rxc4 {[%clk 00:21:22]} {[%emt 00:00:05]} Rf6 {[%clk 01:00:40]}
{[%emt 00:00:17]} 30. Rf3 {[%clk 00:16:26]} {[%emt 00:05:26]} Re8 {[%clk
00:59:28]} {[%emt 00:01:43]} 31. Rd3 {[%clk 00:15:08]} {[%emt 00:01:48]} Rh6
{[%clk 00:59:36]} {[%emt 00:00:21]} 32. h3 {[%clk 00:15:09]} {[%emt 00:00:29]}
Rh4 {[%clk 00:59:18]} {[%emt 00:00:48]} 33. Kf1 {[%clk 00:13:03]} {[%emt
00:02:34]} Rf8 {[%clk 00:55:54]} {[%emt 00:03:57]} 34. Rc2 {[%clk 00:09:57]}
{[%emt 00:03:36]} g6 {[%clk 00:54:12]} {[%emt 00:02:11]} 35. Ke1 {[%clk
00:07:13]} {[%emt 00:03:14]} gxf5 {[%clk 00:51:22]} {[%emt 00:03:20]} 36. exf5
{[%clk 00:07:03]} {[%emt 00:00:40]} Rxf5 {[%clk 00:51:20]} {[%emt 00:00:31]} 37.
Bd5+ {[%clk 00:04:45]} {[%emt 00:02:49]} Kg7 {[%clk 00:51:41]} {[%emt
00:00:08]} 38. Rg2+ {[%clk 00:02:40]} {[%emt 00:02:36]} Kh6 {[%clk 00:51:38]}
{[%emt 00:00:33]} 39. Bxb7 {[%clk 00:02:21]} {[%emt 00:00:49]} Rxa4 {[%clk
00:51:56]} {[%emt 00:00:11]} 40. Rg4 {[%clk 00:00:51]} {[%emt 00:02:00]} Rxg4
{[%clk 00:34:28]} {[%emt 00:17:58]} 41. hxg4 {[%clk 00:01:16]} {[%emt
00:00:05]} Rf7 {[%clk 00:34:20]} {[%emt 00:00:38]} 42. Be4 {[%clk 00:01:07]}
{[%emt 00:00:38]} Kg5 {[%clk 00:33:52]} {[%emt 00:01:00]} 43. Bf3 {[%clk
00:00:33]} {[%emt 00:01:06]} c4 {[%clk 00:33:48]} {[%emt 00:00:33]} 44. Ra3
{[%clk 00:00:36]} {[%emt 00:00:25]} c3 {[%clk 00:34:04]} {[%emt 00:00:15]} 45.
Bd1 {[%clk 00:00:57]} {[%emt 00:00:10]} Re7 {[%clk 00:30:49]} {[%emt 00:03:44]}
46. Ke2 {[%clk 00:00:53]} {[%emt 00:00:35]} Kxg4 {[%clk 00:30:33]} {[%emt
00:00:45]} 47. Kd3+ {[%clk 00:01:13]} {[%emt 00:00:10]} Kg3 {[%clk 00:30:30]}
{[%emt 00:00:33]} 48. Ra4 {[%clk 00:01:27]} {[%emt 00:00:16]} Rg7 {[%clk
00:30:19]} {[%emt 00:00:40]} 49. Re4 {[%clk 00:01:38]} {[%emt 00:00:20]} h6
{[%clk 00:29:14]} {[%emt 00:01:35]} 50. Re1 {[%clk 00:01:33]} {[%emt 00:00:32]}
Kf2 {[%clk 00:28:51]} {[%emt 00:00:55]} 51. Rh1 {[%clk 00:01:46]} {[%emt
00:00:16]} Rg1 {[%clk 00:28:40]} {[%emt 00:00:42]} 52. Rxg1 {[%clk 00:01:31]}
{[%emt 00:00:46]} Kxg1 {[%clk 00:29:00]} {[%emt 00:00:09]} 53. Ke2 {[%clk
00:01:46]} {[%emt 00:00:15]} h5 {[%clk 00:29:18]} {[%emt 00:00:12]} 0-1

[Event "Kvibergspelen September 2019"]
[Site "Prioritet Serneke Arena, Krutvagen 2, Gothenburg, Sweden"]
[Date "2019.09.29"]
[Round "8.14"]
[White "Ask, Josef"]
[Black "Crevatin, Leo"]
[Result "1/2-1/2"]
[TimeControl "15 minutes + 5 seconds per move from move one (Round 1 - 4) / 90 minutes + 30 seconds per move from move one (Round 5 - 8)"]
[WhiteTitle "FM"]
[BlackTitle "CM"]
[WhiteFideId "1704583"]
[BlackFideId "1726307"]
[WhiteElo "2160"]
[BlackElo "2235"]

1. e4 {[%clk 01:30:55]} {[%emt 00:00:03]} c6 {[%clk 01:30:55]} {[%emt
00:00:05]} 2. d4 {[%clk 01:30:08]} {[%emt 00:01:18]} d5 {[%clk 01:31:10]}
{[%emt 00:00:15]} 3. Nd2 {[%clk 01:30:13]} {[%emt 00:00:25]} dxe4 {[%clk
01:31:36]} {[%emt 00:00:05]} 4. Nxe4 {[%clk 01:30:37]} {[%emt 00:00:05]} Bf5
{[%clk 01:32:01]} {[%emt 00:00:04]} 5. Ng3 {[%clk 01:30:26]} {[%emt 00:00:41]}
Bg6 {[%clk 01:32:30]} {[%emt 00:00:02]} 6. h4 {[%clk 01:30:29]} {[%emt
00:00:27]} h6 {[%clk 01:32:51]} {[%emt 00:00:09]} 7. Nf3 {[%clk 01:30:33]}
{[%emt 00:00:26]} Nd7 {[%clk 01:33:16]} {[%emt 00:00:05]} 8. h5 {[%clk
01:30:42]} {[%emt 00:00:22]} Bh7 {[%clk 01:33:44]} {[%emt 00:00:02]} 9. Bd3
{[%clk 01:30:44]} {[%emt 00:00:27]} Bxd3 {[%clk 01:34:09]} {[%emt 00:00:06]} 10.
Qxd3 {[%clk 01:31:08]} {[%emt 00:00:06]} e6 {[%clk 01:34:35]} {[%emt 00:00:04]}
11. Bd2 {[%clk 01:30:48]} {[%emt 00:00:49]} Ngf6 {[%clk 01:34:54]} {[%emt
00:00:11]} 12. Qe2 {[%clk 01:27:24]} {[%emt 00:03:54]} Be7 {[%clk 01:29:02]}
{[%emt 00:06:22]} 13. O-O-O {[%clk 01:25:47]} {[%emt 00:02:07]} O-O {[%clk
01:28:29]} {[%emt 00:01:03]} 14. Nf1 {[%clk 01:23:06]} {[%emt 00:03:10]} c5
{[%clk 01:16:31]} {[%emt 00:12:29]} 15. g4 {[%clk 01:19:51]} {[%emt 00:03:45]}
cxd4 {[%clk 01:02:28]} {[%emt 00:14:33]} 16. g5 {[%clk 01:16:32]} {[%emt
00:03:49]} hxg5 {[%clk 01:02:15]} {[%emt 00:00:43]} 17. Bxg5 {[%clk 01:16:12]}
{[%emt 00:00:51]} Nd5 {[%clk 00:47:44]} {[%emt 00:15:01]} 18. Rg1 {[%clk
01:12:17]} {[%emt 00:04:25]} Bxg5+ {[%clk 00:40:37]} {[%emt 00:07:36]} 19. Rxg5
{[%clk 01:11:02]} {[%emt 00:01:45]} Nf4 {[%clk 00:34:25]} {[%emt 00:06:42]} 20.
Qe4 {[%clk 01:07:55]} {[%emt 00:03:36]} Qc7 {[%clk 00:30:06]} {[%emt 00:04:50]}
21. Nxd4 {[%clk 01:00:54]} {[%emt 00:07:31]} Nc5 {[%clk 00:24:36]} {[%emt
00:05:59]} 22. Qf3 {[%clk 00:58:49]} {[%emt 00:02:36]} Rac8 {[%clk 00:22:18]}
{[%emt 00:02:49]} 23. Ne3 {[%clk 00:56:03]} {[%emt 00:03:16]} Kh8 {[%clk
00:17:41]} {[%emt 00:05:08]} 24. Rg4 {[%clk 00:51:52]} {[%emt 00:04:41]} e5
{[%clk 00:15:29]} {[%emt 00:02:42]} 25. Ndf5 {[%clk 00:51:33]} {[%emt
00:00:48]} Nce6 {[%clk 00:15:49]} {[%emt 00:00:10]} 26. Rdg1 {[%clk 00:50:01]}
{[%emt 00:02:03]} Rg8 {[%clk 00:15:53]} {[%emt 00:00:24]} 27. Kb1 {[%clk
00:48:49]} {[%emt 00:01:43]} a5 {[%clk 00:13:41]} {[%emt 00:02:42]} 28. Qe4
{[%clk 00:38:39]} {[%emt 00:10:40]} 1/2-1/2

[Event "Kvibergspelen September 2019"]
[Site "Prioritet Serneke Arena, Krutvagen 2, Gothenburg, Sweden"]
[Date "2019.09.29"]
[Round "8.15"]
[White "Torngren, Gustav"]
[Black "Rishovd, Svein"]
[Result "1/2-1/2"]
[TimeControl "15 minutes + 5 seconds per move from move one (Round 1 - 4) / 90 minutes + 30 seconds per move from move one (Round 5 - 8)"]
[WhiteTitle "CM"]
[BlackTitle "CM"]
[WhiteFideId "1728970"]
[BlackFideId "1513060"]
[WhiteElo "2227"]
[BlackElo "2158"]

1. c4 {[%clk 01:30:46]} {[%emt 00:00:13]} e6 {[%clk 01:30:39]} {[%emt
00:00:22]} 2. d4 {[%clk 01:30:13]} {[%emt 00:01:03]} d5 {[%clk 01:31:03]}
{[%emt 00:00:06]} 3. Nc3 {[%clk 01:30:35]} {[%emt 00:00:08]} Nf6 {[%clk
01:31:12]} {[%emt 00:00:21]} 4. Nf3 {[%clk 01:30:40]} {[%emt 00:00:24]} c5
{[%clk 01:31:10]} {[%emt 00:00:33]} 5. cxd5 {[%clk 01:29:23]} {[%emt 00:01:46]}
Nxd5 {[%clk 01:30:51]} {[%emt 00:00:49]} 6. e4 {[%clk 01:29:07]} {[%emt
00:00:46]} Nxc3 {[%clk 01:31:09]} {[%emt 00:00:13]} 7. bxc3 {[%clk 01:29:34]}
{[%emt 00:00:02]} cxd4 {[%clk 01:31:32]} {[%emt 00:00:07]} 8. cxd4 {[%clk
01:29:51]} {[%emt 00:00:13]} Bb4+ {[%clk 01:31:56]} {[%emt 00:00:07]} 9. Bd2
{[%clk 01:30:15]} {[%emt 00:00:07]} Bxd2+ {[%clk 01:32:20]} {[%emt 00:00:06]}
10. Qxd2 {[%clk 01:30:35]} {[%emt 00:00:09]} O-O {[%clk 01:32:42]} {[%emt
00:00:08]} 11. Bc4 {[%clk 01:30:56]} {[%emt 00:00:09]} Nd7 {[%clk 01:33:06]}
{[%emt 00:00:07]} 12. O-O {[%clk 01:31:10]} {[%emt 00:00:15]} b6 {[%clk
01:33:32]} {[%emt 00:00:05]} 13. Rfe1 {[%clk 01:28:10]} {[%emt 00:03:29]} Bb7
{[%clk 01:33:46]} {[%emt 00:00:17]} 14. Rad1 {[%clk 01:24:38]} {[%emt
00:04:01]} Rc8 {[%clk 01:34:06]} {[%emt 00:00:11]} 15. Bd3 {[%clk 01:23:42]}
{[%emt 00:01:25]} Qe7 {[%clk 01:33:58]} {[%emt 00:00:39]} 16. Qf4 {[%clk
01:22:28]} {[%emt 00:01:43]} Rfd8 {[%clk 01:29:52]} {[%emt 00:04:37]} 17. h4
{[%clk 01:19:31]} {[%emt 00:03:27]} Nf8 {[%clk 01:26:31]} {[%emt 00:03:51]} 18.
Bb1 {[%clk 01:15:08]} {[%emt 00:04:52]} h6 {[%clk 01:24:45]} {[%emt 00:02:16]}
19. Re3 {[%clk 01:01:18]} {[%emt 00:14:20]} Rc4 {[%clk 01:18:22]} {[%emt
00:06:53]} 20. e5 {[%clk 00:49:58]} {[%emt 00:11:50]} Rd7 {[%clk 00:59:45]}
{[%emt 00:19:07]} 21. Be4 {[%clk 00:30:34]} {[%emt 00:19:54]} Bd5 {[%clk
00:49:48]} {[%emt 00:10:28]} 22. h5 {[%clk 00:22:38]} {[%emt 00:08:26]} Nh7
{[%clk 00:44:17]} {[%emt 00:06:01]} 23. Bd3 {[%clk 00:21:32]} {[%emt 00:01:35]}
Bxf3 {[%clk 00:42:34]} {[%emt 00:02:13]} 24. Rxf3 {[%clk 00:21:04]} {[%emt
00:00:59]} Rcc7 {[%clk 00:41:37]} {[%emt 00:01:26]} 25. Bxh7+ {[%clk 00:16:11]}
{[%emt 00:05:24]} Kxh7 {[%clk 00:42:01]} {[%emt 00:00:06]} 26. Rg3 {[%clk
00:16:08]} {[%emt 00:00:33]} Rc8 {[%clk 00:38:09]} {[%emt 00:04:23]} 27. Qg4
{[%clk 00:15:46]} {[%emt 00:00:52]} Qf8 {[%clk 00:36:02]} {[%emt 00:02:36]} 28.
f4 {[%clk 00:15:36]} {[%emt 00:00:40]} Rcd8 {[%clk 00:35:24]} {[%emt 00:01:09]}
29. f5 {[%clk 00:15:42]} {[%emt 00:00:23]} exf5 {[%clk 00:35:28]} {[%emt
00:00:27]} 30. Qxf5+ {[%clk 00:16:11]} {[%emt 00:00:01]} Kh8 {[%clk 00:35:25]}
{[%emt 00:00:32]} 31. Qg4 {[%clk 00:14:34]} {[%emt 00:02:07]} Rd5 {[%clk
00:35:01]} {[%emt 00:00:55]} 32. Rdd3 {[%clk 00:12:56]} {[%emt 00:02:06]} b5
{[%clk 00:33:44]} {[%emt 00:01:48]} 33. Kh2 {[%clk 00:12:20]} {[%emt 00:01:06]}
a5 {[%clk 00:33:52]} {[%emt 00:00:23]} 34. Qf4 {[%clk 00:08:38]} {[%emt
00:04:12]} Qe7 {[%clk 00:28:19]} {[%emt 00:06:02]} 35. Kg1 {[%clk 00:05:19]}
{[%emt 00:03:49]} 1/2-1/2

[Event "Kvibergspelen September 2019"]
[Site "Prioritet Serneke Arena, Krutvagen 2, Gothenburg, Sweden"]
[Date "2019.09.29"]
[Round "8.16"]
[White "Wengholm, Anders"]
[Black "Bjorkeroth, Johan"]
[Result "1-0"]
[TimeControl "15 minutes + 5 seconds per move from move one (Round 1 - 4) / 90 minutes + 30 seconds per move from move one (Round 5 - 8)"]
[WhiteFideId "1704818"]
[BlackFideId "1719106"]
[WhiteElo "2218"]
[BlackElo "2147"]

1. c4 {[%clk 01:30:59]} e6 {[%clk 01:30:33]} {[%emt 00:00:27]} 2. Nf3 {[%clk
01:31:12]} {[%emt 00:00:17]} Nf6 {[%clk 01:30:54]} {[%emt 00:00:08]} 3. g3
{[%clk 01:31:29]} {[%emt 00:00:13]} d5 {[%clk 01:31:09]} {[%emt 00:00:15]} 4.
Bg2 {[%clk 01:31:50]} {[%emt 00:00:10]} Be7 {[%clk 01:31:30]} {[%emt 00:00:08]}
5. O-O {[%clk 01:32:11]} {[%emt 00:00:10]} O-O {[%clk 01:31:55]} {[%emt
00:00:06]} 6. d4 {[%clk 01:32:24]} {[%emt 00:00:17]} c6 {[%clk 01:32:18]}
{[%emt 00:00:06]} 7. Nbd2 {[%clk 01:32:35]} {[%emt 00:00:19]} Nbd7 {[%clk
01:32:00]} {[%emt 00:00:47]} 8. Qc2 {[%clk 01:32:56]} {[%emt 00:00:10]} b6
{[%clk 01:30:19]} {[%emt 00:02:12]} 9. e4 {[%clk 01:30:20]} {[%emt 00:03:05]}
dxe4 {[%clk 01:27:06]} {[%emt 00:03:42]} 10. Nxe4 {[%clk 01:30:49]} {[%emt
00:00:02]} Bb7 {[%clk 01:26:15]} {[%emt 00:01:21]} 11. Bf4 {[%clk 01:27:00]}
{[%emt 00:04:20]} Nxe4 {[%clk 01:23:51]} {[%emt 00:02:54]} 12. Qxe4 {[%clk
01:27:27]} {[%emt 00:00:02]} Nf6 {[%clk 01:23:19]} {[%emt 00:01:02]} 13. Qe2
{[%clk 01:27:56]} {[%emt 00:00:02]} c5 {[%clk 01:15:18]} {[%emt 00:08:32]} 14.
Rad1 {[%clk 01:26:18]} {[%emt 00:02:08]} Qc8 {[%clk 01:14:28]} {[%emt
00:01:19]} 15. d5 {[%clk 01:22:41]} {[%emt 00:04:07]} Re8 {[%clk 01:03:25]}
{[%emt 00:11:32]} 16. dxe6 {[%clk 01:18:46]} {[%emt 00:04:26]} Qxe6 {[%clk
01:03:04]} {[%emt 00:00:51]} 17. Qxe6 {[%clk 01:19:04]} {[%emt 00:00:12]} fxe6
{[%clk 01:03:26]} {[%emt 00:00:08]} 18. Rfe1 {[%clk 01:18:50]} {[%emt
00:00:44]} Rad8 {[%clk 01:02:54]} {[%emt 00:01:02]} 19. Rxd8 {[%clk 01:17:45]}
{[%emt 00:01:35]} Bxd8 {[%clk 00:55:43]} {[%emt 00:07:41]} 20. Ng5 {[%clk
00:51:40]} {[%emt 00:26:35]} Bxg2 {[%clk 00:54:35]} {[%emt 00:01:38]} 21. Kxg2
{[%clk 00:52:08]} {[%emt 00:00:02]} Nh5 {[%clk 00:52:48]} {[%emt 00:02:17]} 22.
Bc1 {[%clk 00:52:24]} {[%emt 00:00:13]} Bxg5 {[%clk 00:51:24]} {[%emt
00:01:54]} 23. Bxg5 {[%clk 00:52:50]} {[%emt 00:00:05]} Kf7 {[%clk 00:51:17]}
{[%emt 00:00:36]} 24. Rd1 {[%clk 00:50:01]} {[%emt 00:03:20]} Nf6 {[%clk
00:49:50]} {[%emt 00:01:56]} 25. Kf3 {[%clk 00:48:02]} {[%emt 00:02:29]} h6
{[%clk 00:38:52]} {[%emt 00:11:27]} 26. Bxf6 {[%clk 00:46:11]} {[%emt
00:02:22]} gxf6 {[%clk 00:38:44]} {[%emt 00:00:37]} 27. Kg4 {[%clk 00:43:35]}
{[%emt 00:03:07]} Re7 {[%clk 00:35:45]} {[%emt 00:03:28]} 28. Kh5 {[%clk
00:42:06]} {[%emt 00:01:59]} f5 {[%clk 00:29:13]} {[%emt 00:07:02]} 29. Kxh6
{[%clk 00:29:07]} {[%emt 00:13:29]} Kf6 {[%clk 00:29:27]} {[%emt 00:00:16]} 30.
Rd8 {[%clk 00:29:04]} {[%emt 00:00:34]} Ke5 {[%clk 00:19:56]} {[%emt 00:10:01]}
31. h4 {[%clk 00:22:07]} {[%emt 00:07:27]} Ke4 {[%clk 00:16:16]} {[%emt
00:04:08]} 32. h5 {[%clk 00:21:25]} {[%emt 00:01:13]} Kf3 {[%clk 00:15:36]}
{[%emt 00:01:10]} 33. Rd2 {[%clk 00:10:00]} {[%emt 00:11:56]} Kg4 {[%clk
00:15:42]} {[%emt 00:00:24]} 34. Kg6 {[%clk 00:10:18]} {[%emt 00:00:12]} e5
{[%clk 00:13:15]} {[%emt 00:02:55]} 35. h6 {[%clk 00:09:11]} {[%emt 00:01:38]}
Re6+ {[%clk 00:05:08]} {[%emt 00:08:37]} 36. Kg7 {[%clk 00:09:35]} {[%emt
00:00:07]} Re7+ {[%clk 00:05:11]} {[%emt 00:00:27]} 37. Kf6 {[%clk 00:05:26]}
{[%emt 00:04:39]} Rc7 {[%clk 00:03:15]} {[%emt 00:02:25]} 38. Kxe5 {[%clk
00:04:52]} {[%emt 00:01:04]} Kg5 {[%clk 00:00:50]} {[%emt 00:02:56]} 39. Rd6
{[%clk 00:05:04]} {[%emt 00:00:18]} Rh7 {[%clk 00:00:38]} {[%emt 00:00:41]} 40.
f4 {[%clk 00:04:46]} {[%emt 00:00:48]} 1-0